Cogmind - Beta 10.2 @@@ ROGUE MODE // 2021.04.06 @ 13:43:00 Player: PyroDawn Result: Destroyed by D-53 Grenadier with Mini Grenade Launcher Performance ------------- Evolutions (0) 0 Regions Visited (4) 800 Robots Destroyed (19) 95 Value Destroyed (491) 491 Prototype IDs (6) 120 Alien Tech Used (0) 0 Bonus (64) 64 TOTAL SCORE: 1570 Bonus ------- Follower Combat Kills 64 Cogmind --------- Core Integrity 0/250 Matter 300/300 Energy 98/100 System Corruption 0% Temperature Cool (1) Movement Walking (210) Ox3 Location -9/Mines Parts ------- > --- POWER (1) -------- (None) > --- PROPULSION (2) --- Aluminum Leg > --- UTILITY (2) ------ High-capacity Storage Unit Signal Interpreter > --- WEAPON (2) ------- Grenade Launcher Axe > --- INVENTORY (12) --- VTOL Module VTOL Module VTOL Module VTOL Module High-capacity Storage Unit Advanced Weight Redist. System Experimental Sensor Array Improved Signal Interpreter Peak State ------------ > --- POWER ------------ Light Nuclear Core > --- PROPULSION ------- Aluminum Leg Aluminum Leg > --- UTILITY ---------- High-capacity Storage Unit Signal Interpreter > --- WEAPON ----------- Grenade Launcher Axe > --- INVENTORY -------- VTOL Module VTOL Module VTOL Module VTOL Module High-capacity Storage Unit Advanced Weight Redist. System Experimental Sensor Array Improved Signal Interpreter [Rating: 13] Favorites ----------- Power Light Ion Engine Engine Light Ion Engine Power Core Light Nuclear Core Propulsion Aluminum Leg Treads Light Treads Leg Aluminum Leg Utility Small Storage Unit Device Sensor Array Storage Small Storage Unit Processor Signal Interpreter Weapon Grenade Launcher Energy Cannon Beam Cannon Ballistic Gun Light Assault Rifle Launcher Grenade Launcher Impact Weapon Hammer Slashing Weapon Axe Build | -11 -10 -10 -10 -9 ------- Run | Scr Mat Min Exi Min Slots Evolved . | . . . . . Power . | . . . . . Propulsion . | . . . . . Utility . | . . . . . Weapon . | . . . . . Parts Attached 24 | 5 9 9 1 . Power 2 | 1 . 1 . . Engine 1 | 1 . . . . Core 1 | . . 1 . . Reactor . | . . . . . Propulsion 4 | 2 2 . . . Treads 1 | . 1 . . . Leg 3 | 2 1 . . . Wheel . | . . . . . Hover . | . . . . . Flight . | . . . . . Utility 10 | . 4 5 1 . Device 4 | . 2 2 . . Storage 4 | . 1 2 1 . Processor 2 | . 1 1 . . Hackware . | . . . . . Protection . | . . . . . Artifact . | . . . . . Weapon 8 | 2 3 3 . . Energy Gun . | . . . . . Energy Cannon 1 | . 1 . . . Ballistic Gun 4 | 2 1 1 . . Ballistic Cannon . | . . . . . Launcher 1 | . 1 . . . Special Weapon . | . . . . . Impact Weapon 1 | . . 1 . . Slashing Weapon 1 | . . 1 . . Piercing Weapon . | . . . . . Special Melee Weapon . | . . . . . Unidentified Prototypes 1 | . . 1 . . Parts Lost 5 | . 3 . . 2 Power 1 | . . . . 1 Propulsion 1 | . . . . 1 Utility . | . . . . . Weapon 3 | . 3 . . . Highest Loss Streak 2 | . 2 . . 2 Average Slot Usage (%) 97 | . 93 99 100 99 Engine 8 | . 14 12 . . Core 5 | . . 1 14 13 Treads 2 | . 8 . . . Leg 25 | . 19 28 28 27 Device 1 | . 3 1 . . Storage 13 | . 13 13 14 14 Processor 11 | . 8 12 14 14 Energy Cannon 1 | . 4 . . . Ballistic Gun 7 | . 13 10 . . Launcher 10 | . 4 14 14 14 Slashing Weapon 5 | . . 1 14 14 Naked Turns . | . . . . . Heaviest Build 43 | 6 12 15 43 43 Greatest Support 20 | 20 20 20 20 20 Greatest Overweight (x) 4 | . 1 . 2 4 Average Overweight (x) . | . . . . 2 Largest Inventory Capacity 12 | 4 6 6 12 12 Average Capacity 7 | 4 5 5 7 12 Most Carried 8 | 3 6 6 7 8 Average Carried 6 | 2 5 5 6 7 Final Capacity 12 | 4 6 6 12 12 Final Carried 8 | 3 6 6 7 8 Class Distribution -------------------- 100% | Mutant Dominant Class ---------------- Mutant | -10/Materials Mutant | -10/Mines Mutant | -10/Exiles Mutant | -9/Mines Resources | -11 -10 -10 -10 -9 ----------- Run | Scr Mat Min Exi Min Matter Collected 654 | 237 217 170 10 20 Remotely . | . . . . . Salvage Created 449 | . 393 56 . . Parts 35 | . 26 9 . . Haulers Intercepted . | . . . . . Recyclers Shooed . | . . . . . Parts Field Recycled . | . . . . . Retrieved Matter . | . . . . . Parts Self-Destructed . | . . . . . Prevented . | . . . . . Kills | -11 -10 -10 -10 -9 ------- Run | Scr Mat Min Exi Min Combat Hostiles Destroyed 18 | . 11 7 . . Guns 4 | . 4 . . . Cannons 6 | . 6 . . . AOE 8 | . 1 7 . . Classes Destroyed 3 | . 3 . . . Operator 1 | . 1 . . . Swarmer 9 | . 3 6 . . Grunt 9 | . 8 1 . . Best Kill Streak 3 | . 3 3 . . Combat Bots Only 3 | . 2 3 . . Max Kills in Single Turn 2 | . 1 2 . . Gunslinging . | . . . . . Exploded 2 | . 1 2 . . Melee . | . . . . . Uniques/NPCs Destroyed . | . . . . . Combat | -11 -10 -10 -10 -9 -------- Run | Scr Mat Min Exi Min Damage Taken 947 | . 641 70 . 236 Core 272 | . 167 18 . 87 Absorbed by Shields . | . . . . . Core Remaining (%) 100 | 100 . . . . Volleys Fired 59 | . 50 7 . 2 Largest 2 | . 2 1 . 1 Hottest 80 | . 80 30 . 30 Shots Fired 95 | . 86 7 . 2 Gun 57 | . 57 . . . Cannon 28 | . 28 . . . Launcher 10 | . 1 7 . 2 Special . | . . . . . Kinetic 57 | . 57 . . . Thermal 28 | . 28 . . . Explosive 10 | . 1 7 . 2 Electromagnetic . | . . . . . Robot Hit Streak 13 | . 13 1 . . Robot Miss Streak 5 | . 5 . . . Penetration Max . | . . . . . Secondary Targets . | . . . . . Shots Hit Robots 53 | . 52 1 . . Core Hits 31 | . 20 10 . 1 Critical Hits . | . . . . . Critical Kills . | . . . . . Critical Parts Destroyed . | . . . . . Melee Attacks . | . . . . . Impact . | . . . . . Slashing . | . . . . . Piercing . | . . . . . Sneak Attacks . | . . . . . Combat Hostiles . | . . . . . Follow-up Attacks . | . . . . . Damage Inflicted 1094 | . 695 386 . 13 Guns 388 | . 388 . . . Cannons 281 | . 281 . . . Explosions 425 | . 26 386 . 13 Melee . | . . . . . Ramming . | . . . . . Kinetic 388 | . 388 . . . Thermal 281 | . 281 . . . Explosive 425 | . 26 386 . 13 Electromagnetic . | . . . . . Impact . | . . . . . Slashing . | . . . . . Piercing . | . . . . . Highest Corruption . | . . . . . Average Corruption . | . . . . . Corruption Purged . | . . . . . Overload Shots . | . . . . . Overflow Damage 21 | . 17 4 . . Projectiles 17 | . 17 . . . Explosions 4 | . . 4 . . Melee . | . . . . . Knockbacks . | . . . . . Impact . | . . . . . Kinetic . | . . . . . Secondary . | . . . . . Self-Inflicted Damage 23 | . . . . 23 Shots 1 | . . . . 1 Rammed . | . . . . . Targets Rammed . | . . . . . Kicked . | . . . . . Crushed . | . . . . . Highest Temperature 137 | . 137 1 . . Average Temperature 48 | . 49 1 . . Received Heat Transfer 207 | . 201 6 . . Siege Activations . | . . . . . Robots Corrupted . | . . . . . Combat Hostiles . | . . . . . Parts Fried . | . . . . . Impact Corruptions . | . . . . . Robots Melted . | . . . . . Combat Hostiles . | . . . . . Parts Melted . | . . . . . Heat Transferred 592 | . 592 . . . Parts Sabotaged . | . . . . . Parts Stolen . | . . . . . Parts Stripped . | . . . . . Power Chain Reactions . | . . . . . Missiles Intercepted . | . . . . . Alert | -11 -10 -10 -10 -9 ------- Run | Scr Mat Min Exi Min Peak Influence 249 | . 249 216 . 103 Initial 61 | . . 61 . . Average 79 | . 104 94 . 6 Maximum Alert Level 1 | . 1 1 . . Low Security (%) 90 | 100 86 90 . 100 Level 1 9 | . 13 9 . . Level 2 . | . . . . . Level 3 . | . . . . . Level 4 . | . . . . . Level 5 . | . . . . . High Security . | . . . . . Max Security . | . . . . . Squads Dispatched 4 | . 3 1 . . Investigation 3 | . 2 1 . . Extermination . | . . . . . Reinforcement 1 | . 1 . . . Assault . | . . . . . Garrison . | . . . . . Intercept . | . . . . . Construction Impeded . | . . . . . Haulers Reinforced . | . . . . . Stealth | -11 -10 -10 -10 -9 --------- Run | Scr Mat Min Exi Min Distress Signals 1 | . 1 . . . Communications Jammed . | . . . . . Distress Signals . | . . . . . Times Spotted 44 | . 28 8 . 8 Peak Tracking Total 7 | . 6 3 . 7 Tactical Retreats 1 | . 1 . . . Traps | -11 -10 -10 -10 -9 ------- Run | Scr Mat Min Exi Min Traps Triggered 3 | . 3 . . . Indirectly . | . . . . . Trap Hack Attempts . | . . . . . Triggered . | . . . . . Disarmed . | . . . . . Reprogrammed . | . . . . . Reused . | . . . . . Traps Extracted . | . . . . . Installed . | . . . . . Triggered . | . . . . . Machines | -11 -10 -10 -10 -9 ---------- Run | Scr Mat Min Exi Min Machines Disabled 4 | . . 1 . 3 Max in Single Turn 3 | . . 1 . 3 Machines Sabotaged . | . . . . . Garrisons Compromised . | . . . . . Overloaded Fab Kills . | . . . . . Fab Network Shutdowns . | . . . . . Hacking | -11 -10 -10 -10 -9 --------- Run | Scr Mat Min Exi Min Machines Accessed 17 | . 9 3 4 1 Terminals 10 | . 7 2 . 1 Fabricators . | . . . . . Repair Stations 1 | . 1 . . . Recycling Units 1 | . 1 . . . Scanalyzers . | . . . . . Garrison Access . | . . . . . Total Hacks 97 | . 36 7 49 5 Successful 80 | . 26 2 49 3 Failed 17 | . 10 5 . 2 Catastrophic 2 | . 2 . . . Database Lockouts . | . . . . . Manual 40 | . 29 6 . 5 Terminals 39 | . 28 6 . 5 Fabricators . | . . . . . Repair Stations 5 | . 5 . . . Recycling Units 3 | . 3 . . . Scanalyzers . | . . . . . Garrison Access . | . . . . . Terminal Hacks 59 | . 7 1 49 2 Record 49 | . . . 49 . Prototype ID Bank 3 | . 2 . . 1 Open Door 1 | . . 1 . . Level Access Points 1 | . 1 . . . Branch Access Points 1 | . 1 . . . Terminal Index 1 | . 1 . . . Unreport Threat 1 | . . . . 1 Hauler Manifests 1 | . 1 . . . Registered Components 1 | . 1 . . . Fabricator Hacks . | . . . . . Repair Station Hacks 4 | . 4 . . . Scan Component 2 | . 2 . . . Repair 2 | . 2 . . . Recycling Unit Hacks . | . . . . . Scanalyzer . | . . . . . Garrison Access Hacks . | . . . . . Unauthorized Hacks 17 | . 15 1 . 1 Terminals 13 | . 11 1 . 1 Track 3 | . 3 . . . Botnet 9 | . 7 1 . 1 Operators 1 | . 1 . . . Fabricators . | . . . . . Repair Stations 1 | . 1 . . . Mechanics 1 | . 1 . . . Recycling Units 3 | . 3 . . . Monitor 1 | . 1 . . . Reject 1 | . 1 . . . Recyclers 1 | . 1 . . . Scanalyzers . | . . . . . Garrison Access . | . . . . . Data Cores Recovered . | . . . . . Used . | . . . . . Hacking Detections 11 | . 8 2 . 1 Full Trace Events . | . . . . . Feedback Events . | . . . . . Feedback Blocked . | . . . . . Robot Schematics Acquired . | . . . . . Robots Built . | . . . . . Matter . | . . . . . Time . | . . . . . Total Robot Build Rating . | . . . . . Part Schematics Acquired . | . . . . . Parts Built . | . . . . . Matter . | . . . . . Time . | . . . . . Total Part Build Rating . | . . . . . Parts Repaired 2 | . 2 . . . Time 64 | . 64 . . . Parts Recycled . | . . . . . Recycled Matter . | . . . . . Retrieved Matter . | . . . . . Retrieved Components . | . . . . . Parts Scanalyzed . | . . . . . Part Schematics Acquired . | . . . . . Parts Damaged . | . . . . . Bothacking | -11 -10 -10 -10 -9 ------------ Run | Scr Mat Min Exi Min Used RIF Installer . | . . . . . Robots Hacked . | . . . . . Non-combat . | . . . . . Combat . | . . . . . Robot Hacks Applied . | . . . . . Relay Couplers Released . | . . . . . Robots Rewired . | . . . . . Allies Hacked . | . . . . . Hacks Repelled . | . . . . . Allies | -11 -10 -10 -10 -9 -------- Run | Scr Mat Min Exi Min Total Allies 3 | . . 3 . . Largest Group 3 | . . 3 3 3 Highest-Rated Group 40 | . . 40 40 40 Highest-Rated Ally 16 | . . 16 16 16 Total Orders 2 | . . 2 . . STAY 1 | . . 1 . . FOLLOW 1 | . . 1 . . Ally Attacks 13 | . . 4 . 9 Total Damage 131 | . . 57 . 74 Kills 4 | . . 2 . 2 Allies Corrupted . | . . . . . Allies Melted . | . . . . . Intel | -11 -10 -10 -10 -9 ------- Run | Scr Mat Min Exi Min Robot Analysis Total . | . . . . . Derelict Logs Recovered 3 | . . 2 . 1 Drone Launches . | . . . . . Drone Recoveries . | . . . . . Exploration | -11 -10 -10 -10 -9 ------------- Run | Scr Mat Min Exi Min Turns Passed 3562 | 59 1188 975 794 546 Spaces Moved 2352 | 42 647 767 613 283 Core 3 | 3 . . . . Treads 147 | . 147 . . . Legs 2202 | 39 500 767 613 283 Wheels . | . . . . . Hover . | . . . . . Flight . | . . . . . Fastest Speed 50 | 50 120 120 120 180 Average Speed 133 | 115 134 120 129 180 Slowest Speed 240 | 120 160 120 180 240 Overloaded Moves . | . . . . . Propulsion Burnouts . | . . . . . Robots Hopped . | . . . . . Cave-ins Triggered . | . . . . . Exploration Rate (%) 69 | 4 86 99 92 65 Regions Visited 4 Branch Regions 3 Pre-discovered Areas 1 | . . . 1 . Known Exits Taken 3 | . 1 1 1 . Unknown Exits Taken 1 | 1 . . . . Scrap Searched 3 | . . 2 . 1 Spaces Dug 10 | . . 10 . . Terrain Destroyed 70 | . 4 58 . 8 Melee . | . . . . . Projectile . | . . . . . AOE 70 | . 4 58 . 8 Terrain Rammed . | . . . . . Walls Destroyed . | . . . . . Machines Disabled . | . . . . . Actions | -11 -10 -10 -10 -9 --------- Run | Scr Mat Min Exi Min Total 2676 | 50 879 813 616 318 Wait 213 | . 161 19 1 32 Move 2348 | 41 646 766 612 283 Hop . | . . . . . Pick Up 19 | 4 8 5 1 1 Fast Attach 16 | 4 6 6 . . Attach 3 | 1 2 . . . Detach . | . . . . . Swap 5 | . 1 3 1 . Drop 13 | . 5 7 1 . Fire 59 | . 50 7 . 2 Melee . | . . . . . Ram . | . . . . . Kick . | . . . . . Crush . | . . . . . Escape Stasis . | . . . . . Rewire . | . . . . . Trap . | . . . . . Miscellaneous . | . . . . . Route ------- -11/Scrapyard -10/Materials (discovered 4 exits: *Mat x3 / *Min) -10/Mines (discovered 3 exits: *Mat x2 / *Exi) -10/Exiles (discovered 2 exits: *Min x2) -9/Mines (discovered 1 exit: [*Mat]) History --------- Turn | Location | Event 9 | -11/Scrapyard | Discovered new exit (range 15) 60 | -11/Scrapyard | Entered Materials 192 | -10/Materials | Discovered new exit (range 8) 309 | -10/Materials | Build established: Mutant 313 | -10/Materials | Discovered new exit (range 6) 646 | -10/Materials | Core integrity fell below 50% 840 | -10/Materials | Identified exit to Mines 871 | -10/Materials | Discovered new exit (range 16) 873 | -10/Materials | Identified exit to Materials 1170 | -10/Materials | Repaired Lgt. Nuclear Core 1197 | -10/Materials | Repaired Sensor Array 1248 | -10/Materials | Entered Mines 1285 | -10/Mines | Met a Derelict bent on vengeance 1317 | -10/Mines | Deemed a non-threat by the Exiles lab entrance 1318 | -10/Mines | Discovered new exit (range 5) 1324 | -10/Mines | Identified exit to Exiles 1401 | -10/Mines | Learned location of 2 exits from Materials 1432 | -10/Mines | Discovered exit to Materials (range 16) 1582 | -10/Mines | Discovered exit to Materials (range 9) 1589 | -10/Mines | Assisted by bots powering up and referring to "LRC-V3" 1788 | -10/Mines | Learned 2 Materials zone layouts 1844 | -10/Mines | Found a damaged Exp. Sensor Array with a note attached 1848 | -10/Mines | Found Prototype Device 1848 | -10/Mines | Identified Exp. Sensor Array 2119 | -10/Mines | Met a Derelict shopkeep closing up shop 2223 | -10/Mines | Entered Exiles 2223 | -10/Exiles | Accompanied by 3 allies 2240 | -10/Exiles | Discovered new exit (range 15) 2256 | -10/Exiles | Identified exit to Mines 2286 | -10/Exiles | Met 8R-AWN 2303 | -10/Exiles | Met EX-HEX 2365 | -10/Exiles | Met EX-DEC 2393 | -10/Exiles | Learned location of Zion (-7) 2437 | -10/Exiles | Met EX-BIN 2614 | -10/Exiles | Visited The Gauntlet 2801 | -10/Exiles | Discovered exit to Mines (range 11) 3017 | -10/Exiles | Entered Mines 3017 | -9/Mines | Accompanied by 3 allies 3172 | -9/Mines | Learned location of 1 exit from Materials 3343 | -9/Mines | Discovered new exit (range 10) 3348 | -9/Mines | Core integrity fell below 20% 3536 | -9/Mines | Assembled infested the area 3541 | -9/Mines | Assisted by a Guerilla fighting off Assembled 3563 | -9/Mines | Destroyed by D-53 Grenadier with Mini Grenade Launcher Last Messages --------------- group of Assembled to figure out where they're coming from, and they're closing on this area, come on!" 03553_ FZ-033(h): "I'll hold them off! Go on ahead or try to find another way!" 03553_ HV Slug penetrates Wall. 03554_ C-30 ARC bursts open, deploying its payload. 03554_ D-53 Grenadier unfolds itself. 03554_ FZ-033(h) destroyed. 03557_ The unstable cave ceiling collapses. 03558_ Trooper 1b destroyed. 03558_ Aluminum Leg destroyed. 03559_ The unstable cave ceiling collapses. 03559_ Lgt. Nuclear Core destroyed. 03559_ Mercenary 1a destroyed. 03560_ K-01 Serf collects debris. 03561_ Trooper 1a destroyed. 03563_ The unstable cave ceiling collapses. 03563_ U-05 Engineer builds a Wall. Map ----- +----------------------------------------------------+ | ?????????????????????????????????????????????????? | | ?????????????????????????????????????????????????? | | ?????????????????????????????????????????????????? | | ?????????????????????????????????????????????????? | | ?????????????????????????????????????????????????? | | ?????????????????????????????????????????????????? | | ?????????????????????????????????????????????????? | | ?????????????????????????????????????????????????? | | ?????????????????????????????????????????????????? | | ?????????????????????????????????????????????????? | | ?????????????????????????????????????????????????? | | ?????????????????????????????????????????????????? | | ??????????????????????????###????????????????????? | | ????????????? ???????????# ????????????????????? | | ????????????? ???????????# #????????????????????? | | ????????????? ??????????# #????????????###?????? | | ????????????? ??????????# #???##########T#?????? | | ???????????## ??????????# #???# #?????? | | ??????????## ????????### #???# #?????? | | ??????????# ????????# #???# " % #?????? | | ??????????# ??????#### ###??# " #?????? | | ??????????? ??????# #??# "" < #?????? | | ???????????# #??????# ##?# #?????? | | ???????????# #?????## #?# "" " #?????? | | ???????????# ##????# = #?# " " """ #?????? | | ???????????# ##???# @ #?# """ """ #?????? | | ???????##### ##### d ##?# #?????? | | ######## aa d #??#### #######?????? | | #### # #% ###??## ##??????????? | | """ #??# a % k #??## ##??????????? | | ?#?## """ ##??### ##### ##??????????? | | ????# """ #####?????## # # ##??????????? | | ????# ##?????########## #u #######???????????? | | ????## ##?###### ##??## ##???????????????? | | ?????### #?## ##?## ##??????????????? | | ???????# #?# ### #??????????????? | | ???????# ### #??????????????? | | ???????# ### #??????????????? | | ??###### ######?## #??????????????? | | ??# #####???????###### #??######??????? | | ??# ##### #????????????????## #### ##?????? | | ??# #???# #?????????????????# ## #?????? | | ### ###?# #????????????????## ##????? | | # #?# ####???????????### !!###??? | | #?# #??????????## #### !% ##?? | | ##?#### ##########?# ##??## #?? | | ##?????# #?# #????## ##?? | | ###??????## ####### #?# ##????#########??? | | ##?????????# #?????# #?## ##??????????????? | | ##?????????# #?????# #??## ###????????????? | +----------------------------------------------------+ Best States ------------- Heat Dissipation 25 Energy Generation 14 Energy Capacity 160 Matter Stores 300 Matter Capacity 300 Sight Range 16 Robot Scan Range 10 Terrain Scan Density 10 Evasion (%) 40 Targeting Accuracy 5 Recoil Reduction 1 Item Schematics ----------------- None Robot Schematics ------------------ None Fabricated ------------ Nothing Alien Tech Used ----------------- None Achievements -------------- None Challenges ------------ None Game ------ Seed BeamLargeDoomcannon Manual? 0 Play Time 00:46:53 Cumulative 501.1 hours Start 2021.04.06 @ 12:42:46 End 2021.04.06 @ 13:43:00 Sessions 1 Manual Loads 0 Difficulty Rogue Special Mode None Game No. 150 Rogue 150 Adventurer 0 Explorer 0 Win Type - Total 2 Types 1/0/1/0/0/0/0/0/0 Lore% 70 Gallery% 79 Achievement% 58 Wizard Run 0 Options --------- ASCII 0 Keyboard 0 Movement Arrows Keybinds 0 Fullscreen 1 Font 16/SmallcapsGlow Map View 50x54 Tactical HUD 1 Map Filters NONE Filters NONE Steam 1 RUN: 934d134f-0cb4-4c2d-8320-0fa3f137d79a